bitfinex-derivatives/quotes_ETHF0:USTF0_20251211
["timestamp","ask_amount","ask_price","bid_price","bid_amount"]
[1765417394195,0.00459074,3265.8,3265.7,4.02867]
[1765417394595,1.35479074,3265.8,3265.7,4.02867]
[1765417397798,2.68509074,3265.8,3265.7,4.02867]
[1765417398189,1.35479074,3265.8,3265.7,4.02867]
[1765417398397,0.00459074,3265.8,3265.7,4.02867]
[1765417398693,1.25579074,3265.8,3265.7,4.02867]
[1765417398889,2.50699074,3265.8,3265.7,0.15307]
[1765417401791,2.4242,3265.5,3265.4,0.00682949]
[1765417401993,5.632,3265.5,3265.4,0.00682949]
[1765417403692,3.2078,3265.5,3265.4,3.88242949]
[1765417403898,0.00459074,3265.8,3265.7,4.02867]
[1765417404395,2.2784,3266.6,3266.5,5.0211]
[1765417404700,2.2784,3266.4,3266.3,0.15304]
[1765417404998,1.1392,3266.4,3266.3,2.15314]
[1765417405200,1.1392,3266.4,3266.3,4.02864]
[1765417406999,2.2784,3266.4,3266.3,0.15304]
[1765417407195,2.2267,3265.6,3265.5,1.29858]
[1765417407403,2.2267,3265.6,3265.5,0.15308]
[1765417407898,2.2267,3265.6,3265.5,1.29858]
[1765417408205,2.2267,3265.6,3265.5,1.1455]
[1765417408500,2.1686,3265.5,3265.0,1.0629]
[1765417409005,1.0843,3265.5,3265.0,1.0629]
[1765417409199,1.0652,3265.6,3265.5,4.783]
[1765417409400,2.1304,3265.6,3265.5,2.9069]
[1765417409595,2.1304,3265.6,3265.5,1.07]
[1765417410296,2.1304,3265.6,3265.5,2.9069]
[1765417410899,2.1304,3265.6,3265.5,1.07]
[1765417413901,4.1976,3265.8,3265.7,3.713]
[1765417414106,3.2078,3265.8,3265.7,3.713]
[1765417414701,0.971,3266.1,3266.0,2.9069]
[1765417414905,1.942,3266.1,3266.0,2.9069]
[1765417415206,1.942,3266.1,3266.0,1.07]
[1765417415406,1.9048,3266.0,3265.9,0.15306]
[1765417415801,3.88372344,3266.0,3265.9,0.15306]
[1765417416003,1.9048,3265.6,3265.5,1.07]
[1765417416705,0.9524,3265.6,3265.5,4.783]
[1765417417106,1.8862,3265.6,3265.5,4.783]
[1765417417501,3.2078,3265.8,3265.7,3.713]
[1765417418009,4.1231,3265.8,3265.7,3.713]
[1765417418205,3.2078,3265.8,3265.7,3.86607]
[1765417418404,1.7936,3266.1,3266.0,1.07]
[1765417419404,1.7752,3265.9,3265.8,0.15307]
[1765417426113,5.6282,3265.9,3265.8,0.15307]
[1765417426412,2.6538,3265.5,3265.0,0.15311]
[1765417426614,1.7692,3265.1,3265.0,1.22311]
[1765417426811,4.977,3265.1,3265.0,1.22311]
[1765417427015,4.977,3265.1,3265.0,0.15311]
[1765417427619,4.977,3265.1,3265.0,0.15577025]
[1765417428119,4.977,3265.1,3265.0,1.22577025]
[1765417429017,4.977,3265.1,3265.0,0.00266025]
[1765417429716,1.7012,3264.8,3264.7,0.00459074]
[1765417431021,1.70507751,3264.8,3264.7,0.00825537]
[1765417431323,0.85447751,3264.8,3264.7,3.72125537]
[1765417431518,1.66987751,3264.8,3264.7,1.84515537]
[1765417431718,1.66987751,3264.8,3264.7,0.00825537]
[1765417432922,1.65217751,3264.8,3264.7,3.72125537]
[1765417433217,1.65217751,3264.8,3264.7,1.84515537]
[1765417433520,1.65217751,3264.8,3264.7,0.00825537]
[1765417433713,0.00387751,3264.8,3264.7,3.72125537]
[1765417433916,0.00387751,3264.8,3264.7,3.87437537]
[1765417434211,0.78397751,3264.8,3264.7,3.87437537]
[1765417434417,1.56407751,3264.8,3264.7,0.16137537]
[1765417434614,0.00387751,3264.8,3264.7,3.87437537]
[1765417439423,3.2078,3265.1,3264.7,3.87437537]
[1765417439424,3.2078,3265.1,3265.0,4.38591]
[1765417439617,3.2078,3265.5,3265.4,3.1985]
[1765417440517,3.21137224,3265.5,3265.4,3.35159]
[1765417441117,0.00357224,3265.5,3265.4,3.35159]
[1765417441324,3.2078,3265.9,3265.8,3.35157]
[1765417442227,3.21161164,3265.9,3265.8,3.35157]
[1765417442624,0.00381164,3265.9,3265.8,3.35157]
[1765417448318,0.00381164,3265.9,3265.5,1.0343]
[1765417448319,3.2078,3266.3,3266.2,3.35155]
[1765417448524,4.3831,3266.6,3266.5,4.2328]
[1765417449430,4.38604501,3266.6,3266.5,4.2328]
[1765417450130,4.38604501,3266.6,3266.5,4.38584]
[1765417450430,0.00294501,3266.6,3266.5,4.38584]
[1765417450830,3.2078,3267.2,3267.1,3.1345]
[1765417451130,3.2078,3267.6,3267.1,3.28751]
[1765417451330,6.4525,3267.6,3267.5,1.603]
[1765417451629,6.4525,3267.6,3267.5,3.1345]
[1765417452023,6.45542138,3267.6,3267.5,4.06163358]
[1765417452823,1.61472138,3267.6,3267.5,4.06163358]
[1765417454026,0.00292138,3267.6,3267.5,4.21462358]
[1765417454225,1.61472138,3267.6,3267.5,4.21462358]
[1765417454526,0.00292138,3267.6,3267.5,4.21462358]
[1765417455425,0.00292138,3267.6,3267.5,0.15672358]
[1765417455426,3.24762138,3267.6,3267.5,0.15672358]
[1765417455729,3.24762138,3267.6,3267.5,1.75972358]
[1765417455932,3.24762138,3267.6,3267.5,3.29122358]
[1765417456227,1.61472138,3267.6,3267.5,4.21462358]
[1765417456428,0.00292138,3267.6,3267.5,4.21462358]
[1765417457030,1.61472138,3267.6,3267.5,4.21462358]
[1765417457231,3.24762138,3267.6,3267.5,4.21462358]
[1765417457531,1.61472138,3267.6,3267.5,4.21462358]
[1765417458628,3.24762138,3267.6,3267.5,0.15672358]
[1765417459028,3.24762138,3267.6,3267.5,1.75972358]
[1765417460332,3.24762138,3267.6,3267.5,3.29122358]
[1765417460632,0.00292138,3267.6,3267.5,4.21462358]
[1765417462133,1.61472138,3267.6,3267.5,4.21462358]
[1765417462529,3.24762138,3267.6,3267.5,0.00373358]
[1765417462737,6.45542138,3267.6,3267.5,0.00373358]
[1765417464937,3.2447,3267.3,3267.2,0.00459074]
[1765417465834,3.2447,3267.3,3267.2,0.00747408]
[1765417467542,1.6118,3267.3,3267.2,3.14197408]
[1765417467738,3.2447,3267.3,3267.2,3.14197408]
[1765417467940,1.6118,3267.3,3267.2,3.14197408]
[1765417469844,3.2432,3267.3,3267.2,3.14197408]
[1765417470241,1.6118,3267.3,3267.2,3.14197408]
[1765417470537,1.6067,3266.9,3266.8,3.2078]
[1765417470743,3.2381,3266.5,3266.4,1.81954]
[1765417470943,3.2381,3266.5,3265.5,0.9234]
[1765417470944,3.2381,3266.0,3265.9,3.2078]
[1765417471754,3.2381,3266.0,3265.9,4.87772271]
[1765417471956,3.2078,3266.8,3266.0,1.0076]
[1765417472153,1.01865103,3266.7,3266.0,1.0076]
[1765417472351,1.6067,3266.1,3266.0,4.2912]
[1765417473049,3.853,3266.5,3266.4,3.2836]
[1765417473050,5.4597,3266.5,3266.4,3.2836]
[1765417473354,3.2381,3266.5,3266.4,1.6665]
[1765417474152,3.2381,3266.5,3266.4,3.2836]
[1765417474857,3.2381,3266.2,3266.1,1.81956]
[1765417475353,1.6067,3266.2,3266.1,3.43666]
[1765417475557,3.2078,3266.8,3266.1,3.43666]
[1765417475858,1.01924657,3266.7,3266.1,3.43666]
[1765417476256,1.6067,3266.2,3266.1,3.43666]
[1765417476953,3.2381,3266.2,3266.1,1.81956]
[1765417477152,3.2381,3266.2,3266.1,0.15306]
[1765417478347,3.2381,3266.2,3266.1,1.81956]
[1765417478758,3.2381,3266.2,3266.1,0.15306]
[1765417480851,3.2381,3266.2,3265.9,0.00342271]
[1765417480852,4.162,3266.0,3265.9,0.00342271]
[1765417481157,4.162,3266.0,3264.0,41.8076]
[1765417481158,3.2381,3265.2,3265.1,3.2078]
[1765417481462,3.2381,3265.2,3264.7,3.36092]
[1765417482163,3.241877,3265.2,3264.7,3.36453225]
[1765417482466,0.003777,3265.2,3265.1,6.6445]
[1765417483262,0.00459074,3265.3,3265.2,3.4367]
[1765417484361,0.00803322,3265.3,3265.2,3.4367]
[1765417486260,1.61473322,3265.3,3265.2,3.2836]
[1765417486464,3.2381,3264.0,3263.9,1.6665]
[1765417486664,3.2078,3264.0,3263.9,3.2836]
[1765417486965,6.4459,3264.0,3263.5,1.0076]
[1765417487465,6.4459,3264.0,3263.5,1.01003238]
[1765417487965,6.4459,3264.0,3263.9,1.6665]
[1765417488361,3.2078,3264.0,3263.9,3.2836]
[1765417489567,3.2078,3264.4,3264.3,3.2836]
[1765417489964,4.8145,3264.4,3264.3,3.2836]
[1765417491475,3.2078,3264.4,3264.3,3.2836]
[1765417492170,3.2078,3264.9,3264.3,3.2836]
[1765417492861,4.8145,3264.9,3264.8,3.2836]
[1765417493361,3.2078,3264.9,3264.8,3.2836]
[1765417495175,3.21583322,3265.3,3265.2,3.2836]
[1765417495464,4.82253322,3265.3,3265.2,3.2836]
[1765417496266,6.45393322,3265.3,3265.2,1.6665]
[1765417496567,3.2381,3265.1,3264.6,0.15312]
[1765417496970,1.6067,3265.1,3265.0,4.2912]
[1765417497171,4.82253322,3265.3,3265.2,3.2836]
[1765417497669,3.21583322,3265.3,3265.2,3.2836]
[1765417497870,6.45393322,3265.3,3265.2,1.6665]
[1765417498170,6.45393322,3265.3,3265.2,3.2836]
[1765417498962,6.45393322,3265.3,3265.2,1.6665]
[1765417499366,1.5201,3265.1,3265.0,4.0809]
[1765417499578,3.0077,3265.1,3265.0,1.5564]
[1765417500173,3.0077,3265.1,3265.0,3.0733]
[1765417500370,3.0077,3264.9,3264.8,0.15312]
[1765417500571,1.5201,3264.4,3264.3,6.2811]
[1765417500768,7.0608,3264.9,3264.3,6.43424]
[1765417501471,10.0685,3264.9,3264.8,1.5564]
[1765417501669,3.0077,3264.5,3264.4,0.15313]
[1765417502467,3.0077,3264.5,3263.8,3.2078]
[1765417502663,3.0077,3264.1,3264.0,1.5564]
[1765417502869,3.2078,3264.4,3263.8,6.2811]
[1765417503070,3.2078,3264.4,3263.8,3.0733]
[1765417504874,4.7279,3263.9,3263.8,3.0733]
[1765417505076,3.0077,3263.6,3263.5,0.00243238]
[1765417505275,3.0077,3262.8,3262.7,0.15321]
[1765417505470,3.0077,3262.8,3262.7,1.5564]
[1765417505471,6.2155,3262.8,3262.7,1.5564]
[1765417505772,6.2155,3262.8,3262.5,3.9831]
[1765417505773,1.5201,3262.6,3262.5,3.9831]
[1765417505970,4.7279,3262.8,3262.7,1.5564]
[1765417506281,3.21156415,3262.8,3262.7,3.0759126]
[1765417508072,4.22862836,3262.8,3262.7,3.0759126]
[1765417508272,4.22862836,3262.8,3262.7,0.0026126]
[1765417508273,7.23632836,3262.8,3262.7,0.0026126]
[1765417509370,7.23632836,3262.8,3262.7,1.5590126]
[1765417509574,5.74872836,3262.8,3262.7,3.0759126]
[1765417509880,4.22862836,3262.8,3262.7,3.0759126]
[1765417510972,1.02082836,3262.8,3262.7,3.2291226]
[1765417511174,0.00376415,3262.8,3262.7,9.2291226]
[1765417511474,3.2078,3263.6,3263.5,3.7203]
[1765417511670,4.24459297,3263.6,3263.5,3.7203]
[1765417512469,4.24786683,3263.6,3263.5,3.7203]
[1765417512678,4.24786683,3263.6,3263.5,3.87348]
[1765417513478,1.04006683,3263.6,3263.5,9.87348]
[1765417513680,0.00327386,3263.6,3263.5,9.87348]
[1765417513981,3.2078,3264.0,3263.9,2.8558]
[1765417514281,4.24532003,3264.0,3263.9,3.00896]
[1765417514880,4.24837762,3264.0,3263.9,3.00896]
[1765417515080,7.06177762,3264.0,3263.9,0.15316]
[1765417515276,2.8134,3263.6,3263.5,2.3058]
[1765417515483,7.05872003,3263.6,3263.2,0.00459074]
[1765417515682,1.4484,3263.3,3263.2,1.44589074]
[1765417515883,3.85092003,3263.3,3263.2,0.00459074]
[1765417516182,1.03752003,3263.3,3263.2,3.01358074]
[1765417517491,2.48592003,3263.3,3263.2,3.01358074]
[1765417517785,1.03752003,3263.3,3263.2,3.01358074]
[1765417521488,3.853,3263.9,3263.8,3.00896]
[1765417521780,1.03748342,3263.9,3263.8,3.00896]
[1765417522483,3.21085759,3264.0,3263.9,0.15316]
[1765417522785,3.21085759,3264.0,3263.9,3.00896]
[1765417523175,4.65925759,3264.0,3263.9,3.00896]
[1765417523376,7.06186536,3264.0,3263.9,0.15316]
[1765417523775,2.8134,3263.5,3263.4,1.59448]
[1765417523978,1.4484,3263.5,3263.4,3.00898]
[1765417524189,4.04655759,3264.0,3263.4,3.00898]
[1765417524386,1.4484,3263.5,3263.4,3.00898]
[1765417525589,0.00305759,3264.0,3263.9,3.00896]
[1765417526292,2.81645759,3264.0,3263.9,0.15316]
[1765417526583,2.81645759,3264.0,3263.9,1.59446]
[1765417526889,1.45145759,3264.0,3263.9,1.59446]
[1765417527082,4.67653468,3264.0,3263.9,0.15316]
[1765417527281,4.67653468,3264.0,3263.2,0.00459074]
[1765417527590,1.4484,3263.3,3263.2,3.01358074]
[1765417528083,2.8134,3263.3,3263.2,0.15778074]
[1765417528289,3.8527078,3263.3,3263.2,0.15778074]
[1765417528485,3.85326214,3263.3,3263.2,0.15778074]
[1765417528984,2.6595,3262.8,3262.7,0.0026126]
[1765417529189,3.69936214,3262.8,3262.7,0.0026126]
[1765417529585,3.69936214,3262.8,3262.7,1.2932126]
[1765417529783,3.2078,3263.2,3262.7,1.2932126]
[1765417529784,3.2078,3263.2,3262.8,0.15321]
[1765417530084,3.2078,3263.2,3263.1,2.7649]
[1765417531583,0.82445759,3264.0,3263.5,3.60598]
[1765417531584,3.2078,3263.6,3263.5,3.60598]
[1765417531884,4.5257,3263.6,3263.5,3.60598]
[1765417533289,3.2078,3263.6,3263.5,3.60598]
[1765417535486,0.00305759,3264.0,3263.5,3.60598]
[1765417535487,3.21085759,3264.0,3263.5,3.60598]
[1765417535882,3.21085759,3264.0,3263.6,0.15317]
[1765417536288,1.3179,3263.7,3263.6,1.44377]
[1765417536689,1.3179,3263.7,3263.6,2.76487]
[1765417537089,1.3179,3263.9,3263.8,1.3211]
[1765417537289,3.21085759,3264.0,3263.9,2.6117]
[1765417538086,5.87035759,3264.0,3263.9,2.6117]
[1765417538294,5.87035759,3264.0,3263.5,0.8411]
[1765417538594,5.87035759,3264.0,3263.9,0.15316]
[1765417538792,5.87035759,3264.0,3263.9,1.44376]
[1765417539393,3.21085759,3264.0,3263.9,2.76486]
[1765417540188,0.00305759,3264.0,3263.9,2.76486]
[1765417543899,7.0608,3264.8,3263.8,3.2078]
[1765417543900,3.2078,3264.8,3264.7,2.76482]
[1765417544392,4.5257,3264.8,3264.7,2.76482]
[1765417544598,5.8673,3264.8,3264.7,1.44372]
[1765417544898,2.6595,3264.5,3264.4,0.00459074]
[1765417545098,3.21130838,3264.8,3264.4,2.61629074]
[1765417545399,2.6595,3264.6,3264.5,2.1317]
[1765417545794,4.52920838,3264.8,3264.7,2.76482]
[1765417546198,5.87080838,3264.8,3264.7,1.44372]
[1765417547793,3.21130838,3264.8,3264.7,2.76482]
[1765417547993,4.52920838,3264.8,3264.7,2.76482]
[1765417548192,5.87080838,3264.8,3264.7,2.76482]
[1765417548393,3.21130838,3264.8,3264.7,2.76482]
[1765417548595,0.00350838,3264.8,3264.7,2.76482]
[1765417550698,4.5257,3265.2,3265.1,2.7648]
[1765417551106,5.8673,3265.2,3265.1,1.4437]
[1765417551603,5.86967644,3265.2,3265.1,2.76758172]
[1765417551806,4.52807644,3265.2,3265.1,2.76758172]
[1765417553102,5.86967644,3265.2,3265.1,0.15588172]
[1765417554406,2.6595,3264.6,3264.5,2.1317]
[1765417554609,2.6595,3264.5,3264.4,0.15772074]
[1765417554803,2.9782,3264.5,3264.4,0.15772074]
[1765417555404,1.3179,3264.5,3264.4,2.77331815]
[1765417555604,2.6595,3264.5,3264.4,1.45221815]
[1765417555806,2.6595,3264.7,3264.6,0.15312]
[1765417556206,2.7663,3264.5,3264.4,0.00848815]
[1765417556408,2.4729,3263.9,3263.8,0.15316]
[1765417557704,2.4729,3263.9,3263.8,0.15558068]
[1765417558107,2.4729,3263.9,3263.8,0.00242068]
[1765417558402,2.4371,3263.1,3262.8,3.2078]
[1765417558608,2.4371,3262.9,3262.8,3.2078]
[1765417559405,2.44034916,3262.9,3262.8,3.21055039]
[1765417560512,2.44034916,3262.9,3262.8,0.00275039]
[1765417560809,2.44034916,3262.9,3262.8,0.15596039]
[1765417561313,2.44034916,3262.9,3262.8,1.40466039]
[1765417561514,2.44034916,3262.9,3262.8,0.15596039]
[1765417562006,0.00324916,3262.9,3262.8,2.64076039]
[1765417562516,3.2078,3263.6,3262.8,2.64076039]
[1765417562517,4.4812,3263.6,3263.5,3.2407]
[1765417562805,4.4812,3263.6,3263.2,0.15319]
[1765417562806,5.6449,3263.6,3263.2,0.15319]
[1765417563012,2.4371,3263.3,3263.2,1.40189]
[1765417563213,3.2078,3263.6,3263.0,0.7559]
[1765417563214,4.4812,3263.6,3263.5,3.39388]
[1765417563410,3.21007794,3263.6,3263.5,3.39388]
[1765417563813,4.48347794,3263.6,3263.5,3.39388]
[1765417564014,3.21007794,3263.6,3263.5,3.39388]
[1765417564714,4.48347794,3263.6,3263.5,3.39388]
[1765417565710,3.21007794,3263.6,3263.5,3.39388]
[1765417566211,5.64717794,3263.6,3263.5,0.15318]
[1765417566416,3.21007794,3263.6,3263.5,3.39388]
[1765417566807,4.48347794,3263.6,3263.5,3.39388]
[1765417567003,3.21007794,3263.6,3263.5,3.39388]
[1765417567411,0.00227794,3263.6,3263.5,3.39388]
[1765417569912,2.43937794,3263.6,3263.5,0.15318]
[1765417570615,2.4371,3263.3,3263.2,3.18756539]
[1765417570920,2.4371,3263.3,3262.8,2.64076039]
[1765417570921,3.2078,3263.3,3262.8,2.64076039]
[1765417571119,4.4812,3263.3,3263.2,1.2487]
[1765417571315,5.6449,3263.3,3263.2,1.2487]
[1765417571519,4.4812,3263.3,3263.2,1.2487]
[1765417571713,1.2734,3263.3,3263.2,2.63799]
[1765417571916,1.27567794,3263.6,3263.5,3.2407]
[1765417572219,1.2734,3263.4,3263.3,2.63799]
[1765417572717,1.27567794,3263.6,3263.5,1.2487]
[1765417573018,1.27567794,3263.6,3263.5,3.39388]
[1765417573718,2.43937794,3263.6,3263.5,2.15778]
[1765417574819,1.27567794,3263.6,3263.5,3.39388]
[1765417575514,2.43937794,3263.6,3263.5,0.15318]
[1765417576615,1.27567794,3263.6,3263.5,3.39388]
[1765417577625,0.00227794,3263.6,3263.5,3.39388]
[1765417578027,1.15397794,3263.6,3263.5,3.39388]
[1765417578218,0.00227794,3263.6,3263.5,3.39388]
[1765417578524,2.3497,3262.9,3262.8,0.00275039]
[1765417578722,2.3497,3262.6,3262.5,0.00459074]
[1765417579525,2.3497,3262.1,3262.0,0.15325]
[1765417579716,5.5575,3262.1,3262.0,0.15325]
[1765417579918,4.3595,3262.1,3262.0,3.18775142]
[1765417580727,4.3595,3262.5,3262.4,2.3373]
[1765417581028,1.1517,3262.4,3262.3,0.15323]
[1765417581214,3.2078,3262.9,3262.3,2.49053]
[1765417582420,2.3497,3262.4,3262.3,1.29053]
[1765417583324,1.1517,3262.4,3262.3,2.49053]
[1765417583725,2.3497,3262.4,3262.3,1.29053]
[1765417584231,2.3497,3262.4,3262.3,0.15323]
[1765417586329,2.3497,3262.4,3262.3,1.29053]
[1765417586726,2.3497,3262.4,3262.3,0.15323]
[1765417586933,2.3497,3262.4,3262.3,1.29053]
[1765417587836,2.3497,3262.4,3262.3,0.15323]
[1765417589326,2.2721,3262.1,3262.0,0.00350142]
[1765417589634,5.4799,3262.5,3262.4,2.2706]
[1765417589831,3.2078,3262.5,3262.4,2.42383]
[1765417590024,5.4799,3263.0,3262.9,1.1718]
[1765417590634,5.4799,3263.0,3262.9,2.2706]
[1765417591133,3.2078,3263.0,3262.9,2.2706]
[1765417591834,4.3123,3263.4,3263.3,2.2706]
[1765417592131,3.2078,3263.4,3263.3,2.2706]
[1765417592332,0.00227794,3263.6,3263.5,2.9562]
[1765417593429,1.10677794,3263.6,3263.5,2.9562]
[1765417593834,0.00227794,3263.6,3263.5,2.9562]
[1765417595227,0.00227794,3263.6,3263.5,3.10938]
[1765417595427,3.2078,3264.2,3264.1,2.2706]
[1765417595833,4.3123,3264.6,3264.5,1.8574]
[1765417596139,5.4799,3264.6,3264.5,1.8574]
[1765417596336,5.4799,3264.6,3264.5,0.6856]
[1765417596537,5.4831015,3264.6,3264.5,0.00255732]
[1765417598840,11.4831015,3264.6,3264.5,0.00255732]
[1765417599046,2.2721,3264.3,3264.2,0.00459797]
[1765417599947,2.2721,3264.3,3264.2,0.0084634]
[1765417600551,2.2721,3264.3,3264.2,1.1802634]
[1765417600848,2.2721,3264.3,3264.2,0.0084634]
[1765417601452,3.2110015,3264.6,3264.5,3.10933]
[1765417601645,0.0032015,3264.6,3264.5,3.10933]
[1765417602246,1.1077015,3264.6,3264.5,3.10933]
[1765417602548,0.0032015,3264.6,3264.5,3.10933]
[1765417603554,0.00459797,3264.9,3264.8,2.42372]
[1765417603756,0.00459797,3264.9,3264.2,2.4322034]
[1765417604061,1.10909797,3264.9,3264.8,1.1718]
[1765417604456,2.27669797,3264.9,3264.8,1.1718]
[1765417604756,0.00678782,3264.9,3264.8,2.2706]
[1765417605258,1.11128782,3264.9,3264.8,2.2706]
[1765417606159,2.2721,3264.7,3264.6,3.36092]
[1765417606356,1.1045,3264.7,3264.6,2.42372]
[1765417606549,0.00678782,3264.9,3264.8,2.2706]
[1765417607260,1.11128782,3264.9,3264.8,2.2706]
[1765417608456,1.1045,3264.8,3264.7,1.32492]
[1765417608760,1.11128782,3264.9,3264.8,2.2706]
[1765417608955,2.27888782,3264.9,3264.8,1.1718]
[1765417609554,2.2721,3264.7,3264.6,3.2078]
[1765417610762,2.2721,3264.7,3264.6,4.3796]
[1765417611358,2.2721,3264.7,3264.6,3.2078]
[1765417611763,2.2721,3264.7,3264.6,4.3796]
[1765417613061,2.2721,3264.7,3264.6,3.2078]
[1765417613364,2.2721,3264.3,3264.2,3.2162634]
[1765417613761,3.853,3264.8,3264.2,5.6400034]
[1765417613966,3.853,3264.8,3264.2,3.2162634]
[1765417614164,4.9575,3264.8,3264.7,1.1718]
[1765417614564,6.1251,3264.8,3264.7,1.1718]
[1765417614964,3.853,3264.8,3264.7,5.63152]
[1765417615464,6.1251,3264.8,3264.7,4.53272]
[1765417616469,6.1251,3264.8,3264.7,0.15312]
[1765417616662,6.1251,3264.8,3264.3,3.2078]
[1765417616867,2.2721,3264.4,3264.3,3.2078]
[1765417621972,6.1251,3264.4,3264.3,3.2078]
[1765417622375,7.17195029,3264.4,3264.3,3.2078]
[1765417622771,2.0339,3264.3,3264.2,0.0084634]
[1765417622972,2.0339,3264.3,3263.0,0.6856]
[1765417622973,2.0339,3263.4,3262.7,3.2078]
[1765417623273,2.0339,3262.8,3262.7,4.2297]
[1765417623470,2.0339,3262.8,3262.7,3.2078]
[1765417623877,2.0339,3262.8,3262.7,4.2335807]
[1765417624073,0.00459797,3263.1,3262.7,4.2335807]
[1765417624074,0.00459797,3263.1,3263.0,2.6398]
[1765417624475,0.00459797,3263.1,3263.0,2.793]
[1765417624670,2.03849797,3263.1,3263.0,0.7642]
[1765417624872,2.03849797,3263.1,3263.0,0.1532]
[1765417625071,2.03849797,3263.1,3263.0,1.1751]
[1765417625274,1.01969797,3263.1,3263.0,2.793]
[1765417625466,0.00459797,3263.1,3263.0,2.793]
[1765417627771,3.2078,3263.9,3263.8,2.0288]
[1765417628173,3.2078,3264.3,3263.8,2.18196]
[1765417628375,3.2078,3264.3,3264.2,2.0288]
[1765417628376,4.2229,3264.3,3264.2,2.0288]
[1765417628571,4.2229,3264.7,3264.6,1.0219]
[1765417628771,4.2229,3264.7,3264.6,2.0288]
[1765417628772,3.2078,3264.7,3264.6,2.0288]
[1765417629178,4.2229,3264.7,3264.6,2.0288]
[1765417629371,2.0339,3264.4,3264.3,0.15773797]
[1765417629579,2.0339,3264.4,3264.3,0.00459797]
[1765417630673,3.2078,3264.7,3264.3,1.87589797]
[1765417630879,1.9675,3264.4,3264.3,0.00459797]
[1765417631878,0.9613,3264.4,3264.3,1.87589797]
[1765417632085,3.2078,3264.7,3264.3,2.02903797]
[1765417632973,4.1691,3264.7,3264.6,0.9475]
[1765417633175,0.9613,3264.4,3264.3,1.10523797]
[1765417633570,1.9675,3264.4,3264.3,0.15773797]
[1765417635680,1.9675,3264.4,3264.3,0.00459797]
[1765417635982,5.8205,3264.4,3263.8,3.2078]
[1765417636171,1.9675,3263.9,3263.8,3.2078]
[1765417636577,1.9675,3263.7,3263.6,1.10067]
[1765417637184,1.9675,3263.7,3263.6,0.15317]
[1765417638185,2.5291,3263.5,3263.4,3.2078]
[1765417638484,1.9675,3263.4,3263.3,0.00459797]
[1765417644080,1.9675,3263.4,3263.3,0.95209797]
[1765417644989,0.9613,3263.4,3263.3,1.87589797]
[1765417645181,0.9613,3263.4,3263.3,0.95209797]
[1765417645182,1.9675,3263.4,3263.3,0.95209797]
[1765417646484,3.853,3263.8,3263.3,1.87589797]
[1765417646690,0.9613,3263.6,3263.5,2.4526]
[1765417646988,1.9675,3263.6,3263.5,1.5288]
[1765417647187,0.9613,3263.6,3263.5,2.4526]
[1765417647488,1.9675,3263.6,3263.5,0.5813]
[1765417647678,1.9675,3263.6,3263.5,1.5288]
[1765417647877,0.9613,3263.6,3263.5,2.4526]
[1765417648080,4.8018,3263.8,3263.7,1.8007]
[1765417648282,4.1566,3264.0,3263.9,1.8007]
[1765417648478,1.886,3263.6,3263.5,1.4568]
[1765417648684,1.886,3263.4,3263.3,0.00459797]
[1765417648884,2.93026467,3263.4,3263.3,0.00459797]
[1765417654688,6.78326467,3263.4,3263.3,0.00459797]
[1765417657994,6.78188465,3263.4,3263.3,0.00459797]
[1765417659294,1.886,3262.8,3262.6,0.15322]
[1765417659687,3.2078,3263.2,3262.7,1.8045807]
[1765417660398,5.0938,3263.2,3263.1,1.8007]
[1765417660897,0.9488,3262.8,3262.7,1.9577907]
[1765417661196,3.2078,3263.2,3262.7,1.9577907]
[1765417661994,5.0938,3263.2,3263.1,1.8007]
[1765417662494,0.00459797,3263.3,3263.1,1.8007]
[1765417662495,0.00459797,3263.3,3263.2,1.95389]
[1765417662894,4.1566,3264.0,3263.9,1.8007]
[1765417664291,5.0938,3264.0,3263.9,0.8755]
[1765417664597,5.0938,3264.0,3263.6,1.80529797]
[1765417664598,0.9488,3263.7,3263.6,1.80529797]
[1765417664991,1.886,3263.7,3263.6,1.80529797]
[1765417665698,1.886,3263.7,3263.6,0.00459797]
[1765417666002,4.91184068,3263.7,3263.6,0.00459797]
[1765417667388,2.93038757,3263.7,3263.6,0.00459797]
[1765417669004,3.2078,3264.0,3263.6,1.80529797]
[1765417669302,2.93099547,3263.9,3263.8,0.8755]
[1765417670404,0.9488,3263.7,3263.6,1.80529797]
[1765417671000,2.9311238,3263.7,3263.6,0.00459797]
[1765417673306,2.9311238,3263.7,3263.6,0.88009797]
[1765417673499,1.9939238,3263.7,3263.6,1.80529797]
[1765417674106,2.9311238,3263.7,3263.6,0.88009797]
[1765417674401,2.9311238,3263.7,3263.6,0.00459797]
[1765417674598,2.9311238,3263.7,3263.6,1.80529797]
[1765417674804,1.9939238,3263.7,3263.6,1.80529797]
[1765417675103,2.9311238,3263.7,3263.6,0.00459797]
[1765417679212,1.0451238,3263.7,3263.6,1.67969797]
[1765417679413,3.2078,3264.0,3263.9,1.6751]
[1765417680311,4.0629,3264.0,3263.9,1.6751]
[1765417680709,1.6755,3263.7,3263.6,0.00459797]
[1765417680906,5.5285,3263.7,3263.6,0.00459797]
[1765417681314,6.57466984,3263.7,3263.6,0.00459797]
[1765417681502,1.6755,3263.1,3263.0,0.1532]
[1765417681707,1.6755,3263.1,3262.5,3.7891]
[1765417681906,1.6755,3262.8,3262.5,3.7891]
[1765417682907,0.8551,3262.8,3262.7,1.6789807]
[1765417683216,2.72127784,3263.1,3263.0,0.5171]
[1765417684311,2.72127784,3263.1,3262.7,0.0038807]
[1765417684312,1.6755,3262.8,3262.7,0.0038807]
[1765417685011,1.6755,3261.7,3261.6,4.8829]
[1765417685210,0.8551,3261.7,3261.6,4.8829]
[1765417686005,1.67798007,3261.7,3261.6,3.21152216]
[1765417686206,1.67798007,3261.7,3261.6,0.00372216]
[1765417686415,1.6755,3261.3,3261.2,4.17158]
[1765417686610,0.8551,3261.3,3261.2,5.03618]
[1765417686813,0.85758007,3261.7,3261.6,1.6751]
[1765417687005,0.85758007,3261.7,3261.5,1.3276]